{"text_format":"3","workbook":"xlsx","n_sheets":1,"sheets":["Pricing schedule for 2 Years"],"not_rendered":{"images":1,"defined_names":2,"comments":2},"read":"whole","date_system":"1900"}

{"sheet":"Pricing schedule for 2 Years","index":0,"n_rows":47,"n_cols":11,"rows_kept":47,"merged":[[1,1,1,8],[2,4,2,8],[3,4,3,6],[3,7,3,9],[4,0,4,3],[5,0,5,9],[6,0,6,3],[7,0,7,3],[8,0,8,3],[9,0,9,3],[10,0,10,3],[11,0,11,3],[12,0,12,3],[13,0,13,3],[14,0,14,3],[15,0,15,9],[16,0,16,3],[17,0,17,3],[18,0,18,9],[19,0,19,3],[20,0,20,3],[21,0,21,3],[22,0,22,3],[24,0,24,3],[25,0,25,3],[26,0,26,3],[27,0,27,3],[28,0,28,3],[30,0,30,3],[31,0,31,4],[33,2,33,4],[33,5,33,8],[34,2,34,4],[34,5,34,8],[35,2,35,4],[35,5,35,8],[36,2,36,4],[37,0,37,4],[38,0,38,4],[39,0,39,4],[40,0,40,4],[41,0,41,4],[42,0,42,4],[43,1,43,3],[46,0,47,0]]}
[null,"APPENDIX A - PRICING SHEET ",null,"The items listed under pricing schedule are for price comparison, and understanding the service required the BANKSETA. The BANKSETA will issue specification to the appointed panel members"]
[null,"APPOINTMENT OF A PANEL OF FIVE (05) SERVICE PROVIDERS TO PROVIDE BELOW THE LINE SERVICES, FOR A PERIOD OF TWO (02) YEARS "]
[null,"Bid No: BS/2024/RFB536",null,null,"   For each piece of work requested by BANKSETA all panel members will be requested to quote  for the full work, through a competitive request for quotation (RFQ) process. The award for the particular work will be to the highest scoring quote/bid.  Kindly note that theproject managent fee quoted in any RFQ  should be the same as qoted below for the particurlar year."]
[{"$nulls":4}," First Year",null,null,"Second Year",null,null,"Total for 2 years"]
["Specification / Description A",{"$nulls":3},"Estimated Quantity","Unit Price","Estimated Total year 1","Estimated Quantity","Unit Price","Estimated Total year 2","TOTAL AMOUNT"]
["1. Promotional Materials transaction "]
["A4 Moleskin Notebook with Branding",{"$nulls":3},20,null,{"$f":"E7*F7","v":0},20,null,{"$f":"H7*I7","v":0},{"$f":"G7+J7","v":{"v":0,"d":"R 0.00"}}]
["Black Pens (Branded)",{"$nulls":3},100,null,0,100,null,{"$f":"H8*I8","v":0},{"$f":"G8+J8","v":{"v":0,"d":"R 0.00"}}]
["Cups (Branded)",{"$nulls":3},100,null,0,100,null,0,{"v":0,"d":"R 0.00"}]
["Power banks Type C 5000mah, 2 USB output",{"$nulls":3},20,null,0,20,null,{"$f":"H10*I10","v":0},{"$f":"G10+J10","v":{"v":0,"d":"R 0.00"}}]
["T-shirt (100% cotton)",{"$nulls":3},50,null,0,50,null,0,{"v":0,"d":"R 0.00"}]
["A5 Notebooks, black - Full colour ",{"$nulls":3},300,null,0,300,null,0,{"v":0,"d":"R 0.00"}]
[" Lanyards ",{"$nulls":3},100,null,0,100,null,0,{"v":0,"d":"R 0.00"}]
["Banner: Dulex-base Pull up banners Material: PVC",{"$nulls":3},5,null,{"$f":"E14*F14","v":0},5,null,0,{"v":0,"d":"R 0.00"}]
["Golf Shirts(Unisex)\n\n\tSpecification: 190g 100% Polyester, Waffle KnitSize: Size: S – 5XLTotal Quantity: 25Colour:  ",{"$nulls":3},50,null,{"$f":"E15*F15","v":0},50,null,0,{"v":0,"d":"R 0.00"}]
["2. Graphic Service work  "]
["Corporate Magazine Design and Layout ",{"$nulls":3},12,null,{"$f":"E17*F17","v":0},12,null,{"$f":"H17*I17","v":0},{"v":0,"d":"R 0.00"}]
["Advert Design",{"$nulls":3},20,null,{"$f":"E18*F18","v":0},20,null,{"$f":"H18*I18","v":0},{"v":0,"d":"R 0.00"}]
["3. Printing service "]
["Printing of A4 publication 20 pages (perfect binded)",{"$nulls":3},100,null,{"$f":"E20*F20","v":0},100,null,{"$f":"H20*I20","v":0},{"$f":"G20+J20","v":{"v":0,"d":"R 0.00"}}]
["Coporate Magazine Full colour both sides of 20 pages",{"$nulls":3},400,null,{"$f":"E21*F21","v":0},400,null,{"$f":"H21*I21","v":0},{"$f":"G21+J21","v":{"v":0,"d":"R 0.00"}}]
["Sector Skills Plan booklet design and layout of 100 pages",{"$nulls":3},200,null,{"$f":"E22*F22","v":0},200,null,{"$f":"H22*I22","v":0},{"$f":"G22+J22","v":{"v":0,"d":"R 0.00"}}]
["TOTAL COSTS",{"$nulls":4},{"$f":"SUM(F6:F22)","v":{"v":0,"d":"R 0.00"}},null,null,{"$f":"SUM(I6:I22)","v":{"v":0,"d":"R 0.00"}},null,{"$f":"SUM(F23+I23)","v":{"v":0,"d":"R 0.00"}}]
[]
["Other Items not included in above - BIDDER TO SPECIFY",{"$nulls":3},"Estimated Quantity","Unit Price","Estimated Total year 1","Estimated Quantity","Unit Price","Estimated Total year 2","TOTAL AMOUNT"]
[1,{"$nulls":9},{"$f":"F26+I26","v":{"v":0,"d":"R 0.00"}}]
[2,{"$nulls":9},{"v":0,"d":"R 0.00"}]
[3,{"$nulls":9},{"v":0,"d":"R 0.00"}]
[4,{"$nulls":9},{"v":0,"d":"R 0.00"}]
[5,{"$nulls":9},{"v":0,"d":"R 0.00"}]
[6,{"$nulls":9},{"$f":"F31+I31","v":{"v":0,"d":"R 0.00"}}]
["OPTIONAL ADDITION",{"$nulls":4},{"$f":"SUM(F26:F31)","v":{"v":0,"d":"R 0.00"}},null,null,{"$f":"SUM(I26:I31)","v":{"v":0,"d":"R 0.00"}},null,{"$f":"SUM(F32+I32)","v":{"v":0,"d":"R 0.00"}}]
[]
[null,null,"Total excluding VAT",null,null,{"$f":"K23+K32","v":{"v":0,"d":"R0.00"}}]
[null,null,"VAT if Applicable (If VAT registered)",null,null,{"$f":"F34*0.15","v":{"v":0,"d":"R0.00"}}]
[null,null,"TOTAL BIDDING PRICE INCL VAT",null,null,{"$f":"F34+F35","v":{"v":0,"d":"R0.00"}}]
["Notes:"]
["Pricing must cover all items detailed in the Terms of Reference"]
["Pricing must remain firm for the duration  of the Project."]
["Pricing must include Value Added Tax (VAT)"]
["Service provider must complte blocks in yellow. Total values in this spreadsheet are automatically calculated and filled in."]
["Travel expenses to and from the event will be calculated from BANKSETA Centurion offices to the event in line with SARS rates"]
["The pricing above are base prices for the commodites mentioned, the BANKSETA will customise the requirement and issue a an RFQ during the contracting period. "]
["Date:"]
["Service Provider Name"]
["Name of Person Signing"]
["Signature"]